Workbook

Sheet Page 162
A1: CATERPILLAR PROFIT AND LOSS, 2007-2011
A2: Sales and revenues | B2: 2007 | C2: 2008 | D2: 2009 | E2: 2010 | F2: 2011
A3: Sales of Machinery and Power Systems | B3: 41962 | C3: 48044 | D3: 29540 | E3: 39867 | F3: 57392
A4: Revenues of Financial Products | B4: 2996 | C4: 3280 | D4: 2856 | E4: 2721 | F4: 2746
A5: Total sales and revenues | B5: =SUM(B3:B4) -> 44958 | C5: =SUM(C3:C4) -> 51324 | D5: =SUM(D3:D4) -> 32396 | E5: =SUM(E3:E4) -> 42588 | F5: =SUM(F3:F4) -> 60138
A7: Operating costs:
A8: Cost of goods sold | B8: 32626 | C8: 38415 | D8: 23886 | E8: 30367 | F8: 43578
A9: Selling, general and administrative expenses | B9: 3821 | C9: 4399 | D9: 3645 | E9: 4248 | F9: 5203
A10: Research and development expenses | B10: 1404 | C10: 1728 | D10: 1421 | E10: 1905 | F10: 2297
A11: Interest expense of Financial Products | B11: 1132 | C11: 1153 | D11: 1045 | E11: 914 | F11: 826
A12: Deferred income taxes | B12: 1054 | C12: 1181 | D12: 1822 | E12: 1191 | F12: 1081
A13: Total operating costs | B13: =SUM(B8:B12) -> 40037 | C13: =SUM(C8:C12) -> 46876 | D13: =SUM(D8:D12) -> 31819 | E13: =SUM(E8:E12) -> 38625 | F13: =SUM(F8:F12) -> 52985
A15: Operating profit | B15: =B5-B13 -> 4921 | C15: =C5-C13 -> 4448 | D15: =D5-D13 -> 577 | E15: =E5-E13 -> 3963 | F15: =F5-F13 -> 7153
A17: Interest expense excluding financial products | B17: 288 | C17: 274 | D17: 389 | E17: 343 | F17: 396
A18: Other income (expense) | B18: 357 | C18: 327 | D18: 381 | E18: 130 | F18: -32
A20: Consolidated profit before taxes | B20: =B15-B17+B18 -> 4990 | C20: =C15-C17+C18 -> 4501 | D20: =D15-D17+D18 -> 569 | E20: =E15-E17+E18 -> 3750 | F20: =F15-F17+F18 -> 6725
A22: Provision (benefit) for income taxes | B22: 1485 | C22: 953 | D22: -270 | E22: 968 | F22: 1720
A23: Profit of consolidated companies | B23: =B20-B22 -> 3505 | C23: =C20-C22 -> 3548 | D23: =D20-D22 -> 839 | E23: =E20-E22 -> 2782 | F23: =F20-F22 -> 5005
A25: Equity in profit (loss) of unconsolidated affiliated companies | B25: 73 | C25: 37 | D25: -12 | E25: -24 | F25: -24
A27: Profit of consolidated and affiliated companies | B27: =B23+B25 -> 3578 | C27: =C23+C25 -> 3585 | D27: =D23+D25 -> 827 | E27: =E23+E25 -> 2758 | F27: =F23+F25 -> 4981
A28: Less: Profit (loss) attributable to noncontrolling interests | B28: 37 | C28: 28 | D28: -68 | E28: 58 | F28: 53
A30: Profit | B30: =B27-B28 -> 3541 | C30: =C27-C28 -> 3557 | D30: =D27-D28 -> 895 | E30: =E27-E28 -> 2700 | F30: =F27-F28 -> 4928
A32: Profit per common share | B32: 5.55 | C32: 5.83 | D32: 1.45 | E32: 4.28 | F32: 7.64
A34: Profit per common share — diluted 2 | B34: 5.37 | C34: 5.66 | D34: 1.43 | E34: 4.15 | F34: 7.4
A36: Weighted-average common shares outstanding (millions)
A37: Basic | B37: 638.2 | C37: 610.5 | D37: 615.2 | E37: 631.5 | F37: 645
A38: Diluted 2 | B38: 659.5 | C38: 627.9 | D38: 626 | E38: 650.4 | F38: 666.1
A40: Cash dividends declared per common share | B40: 1.38 | C40: 1.62 | D40: 1.68 | E40: 1.74 | F40: 1.82

Sheet Page 164
A1: CATERPILLAR, CONSOLIDATED STATEMENT OF CASH FLOWS, 2007-2011
A2: Cash flow from operating activities | B2: 2007 | C2: 2008 | D2: 2009 | E2: 2010 | F2: 2011
A3: Profit of consolidated and affiliated companies | B3: 3578 | C3: 3585 | D3: 827 | E3: 2758 | F3: 4981
A4: Adjustments for non-cash items:
A5: Depreciation and amortization | B5: 1797 | C5: 1980 | D5: 2336 | E5: 2296 | F5: 2527 | G5: <-- Add back depreciation
A6: Other | B6: 162 | C6: 355 | D6: 137 | E6: 469 | F6: 457
A7: Changes in assets and liabilities, net of acquisitions and divestitures:
A8: Receivables—trade and other | B8: 899 | C8: -545 | D8: 4014 | E8: -2320 | F8: -1345 | G8: Changes in operating current assets and operating current liabilities: All part of Caterpillar's net working capital (NWC)
A9: Inventories | B9: -745 | C9: -833 | D9: 2501 | E9: -2667 | F9: -2927
A10: Accounts payable | B10: 387 | C10: -4 | D10: -2034 | E10: 2570 | F10: 1555
A11: Accrued expenses | B11: 231 | C11: 660 | D11: -505 | E11: 117 | F11: 308
A12: Accrued wages, salaries and employee benefits | B12: 576 | C12: 286 | D12: -534 | E12: 847 | F12: 619
A13: Deferred income taxes | B13: 66 | C13: -470 | D13: -646 | E13: 604 | F13: 173
A14: Other assets, net | B14: 1004 | C14: -217 | D14: 235 | E14: 358 | F14: -91
A15: Other liabilities, net | D15: 12 | E15: -23 | F15: 753
A16: Net cash provided by (used for) operating activities | B16: =SUM(B3:B15) -> 7955 | C16: =SUM(C3:C15) -> 4797 | D16: =SUM(D3:D15) -> 6343 | E16: =SUM(E3:E15) -> 5009 | F16: =SUM(F3:F15) -> 7010
A18: Cash flow from investing activities
A19: Capital expenditures—excluding equipment leased to others | B19: -1700 | C19: -2445 | D19: -1348 | E19: -1575 | F19: -2515
A20: Expenditures for equipment leased to others | B20: -1340 | C20: -1566 | D20: -968 | E20: -1011 | F20: -1409 | G20: <-- Is this part of operations?
A21: Proceeds from disposals of leased assets and property, plant and equipment | B21: 408 | C21: 982 | D21: 1242 | E21: 1469 | F21: 1354 | G21: <-- Is this part of operations?
A22: Additions to finance receivables | B22: -13946 | C22: -14031 | D22: -7107 | E22: -8498 | F22: -10001 | G22: <-- Is this part of operations?
A23: Collections of finance receivables | B23: 10985 | C23: 9717 | D23: 9288 | E23: 8987 | F23: 8874 | G23: <-- Is this part of operations?
A24: Proceeds from sale of finance receivables | B24: 866 | C24: 949 | D24: 100 | E24: 16 | F24: 207 | G24: <-- Is this part of operations?
A25: Investments and acquisitions (net of cash acquired) | B25: -229 | C25: -117 | D25: -19 | E25: -1126 | F25: -8184
A26: Proceeds from sale of businesses and investments (net of cash sold) | B26: 290 | C26: 0 | D26: 0 | E26: 0 | F26: 376 | G26: <-- Is this recurring or one-time?
A27: Proceeds from sale of available-for-sale securities | B27: 282 | C27: 357 | D27: 291 | E27: 228 | F27: 247 | G27: <-- Clearly financing
A28: Investments in available-for-sale securities | B28: -485 | C28: -339 | D28: -349 | E28: -217 | F28: -336 | G28: <-- Clearly financing
A29: Other, net | B29: 461 | C29: 197 | D29: -128 | E29: 132 | F29: -40 | G29: <-- Is this worth investigating?
A30: Net cash provided by (used for) investing activities | B30: =SUM(B19:B29) -> -4408 | C30: =SUM(C19:C29) -> -6296 | D30: =SUM(D19:D29) -> 1002 | E30: =SUM(E19:E29) -> -1595 | F30: =SUM(F19:F29) -> -11427
A32: Cash flow from financing activities
A33: Dividends paid | B33: -845 | C33: -953 | D33: -1029 | E33: -1084 | F33: -1159 | G33: All items in this section are clearly financing, and not part of the firm's free cash flows.
A34: Distribution to noncontrolling interests | B34: -20 | C34: -10 | D34: -10 | E34: 0 | F34: -3
A35: Common stock issued, including treasury shares reissued | B35: 328 | C35: 135 | D35: 89 | E35: 296 | F35: 123
A36: Payment for stock repurchase derivative contracts | B36: -56 | C36: -38
A37: Treasury shares purchased | B37: -2405 | C37: -1800
A38: Excess tax benefit from stock-based compensation | B38: 155 | C38: 56 | D38: 21 | E38: 153 | F38: 189
A39: Acquisitions of noncontrolling interests | B39: 0 | C39: 0 | D39: -6 | E39: -132 | F39: -8
A40: Proceeds from debt issued (original maturities greater than three months):
A41: - Machinery and Power Systems | B41: 224 | C41: 1673 | D41: 458 | E41: 216 | F41: 4587
A42: - Financial Products | B42: 10815 | C42: 16257 | D42: 11833 | E42: 8108 | F42: 10873
A43: Payments on debt (original maturities greater than three months):
A44: - Machinery and Power Systems | B44: -598 | C44: -296 | D44: -918 | E44: -1298 | F44: -2269
A45: - Financial Products | B45: -10290 | C45: -14143 | D45: -11769 | E45: -11163 | F45: -8324
A46: Short-term borrowings, net (original maturities three months or less) | B46: -297 | C46: 2074 | D46: -3884 | E46: 291 | F46: -43
A47: Net cash provided by (used for) financing activities | B47: =SUM(B33:B46) -> -2989 | C47: =SUM(C33:C46) -> 2955 | D47: =SUM(D33:D46) -> -5215 | E47: =SUM(E33:E46) -> -4613 | F47: =SUM(F33:F46) -> 3966
A49: Interest expense excluding financial products | B49: ='Page 162'!B17 -> 288 | C49: ='Page 162'!C17 -> 274 | D49: ='Page 162'!D17 -> 389 | E49: ='Page 162'!E17 -> 343 | F49: ='Page 162'!F17 -> 396
A50: Tax rate | B50: ='Page 162'!B22/'Page 162'!B20 -> 0.2975951904 | C50: ='Page 162'!C22/'Page 162'!C20 -> 0.2117307265 | D50: ='Page 162'!D22/'Page 162'!D20 -> -0.474516696 | E50: ='Page 162'!E22/'Page 162'!E20 -> 0.2581333333 | F50: ='Page 162'!F22/'Page 162'!F20 -> 0.2557620818

Sheet Page 163
A1: CATERPILLAR BALANCE SHEETS, 2007-2011
A2: Assets | B2: 2007 | C2: 2008 | D2: 2009 | E2: 2010 | F2: 2011
A3: Current assets
A4: Cash and short-term investments | B4: 1122 | C4: 2736 | D4: 4867 | E4: 3592 | F4: 3057
A5: Receivables--trade and other | B5: 8249 | C5: 9397 | D5: 5611 | E5: 8494 | F5: 10285
A6: Receivables--finance | B6: 7503 | C6: 8731 | D6: 8301 | E6: 8298 | F6: 7668
A7: Deferred and refundable income taxes | B7: 816 | C7: 1223 | D7: 1216 | E7: 931 | F7: 1580
A8: Prepaid expenses and other current assets | B8: 583 | C8: 765 | D8: 862 | E8: 908 | F8: 994
A9: Inventories | B9: 7204 | C9: 8781 | D9: 6360 | E9: 9587 | F9: 14544
A10: Total current assets | B10: =SUM(B4:B9) -> 25477 | C10: =SUM(C4:C9) -> 31633 | D10: =SUM(D4:D9) -> 27217 | E10: =SUM(E4:E9) -> 31810 | F10: =SUM(F4:F9) -> 38128
A12: Property, plant and equipment--net | B12: 9997 | C12: 12524 | D12: 12386 | E12: 12539 | F12: 14395
A13: Long-term receivables--trade and other | B13: 685 | C13: 1479 | D13: 971 | E13: 793 | F13: 1130
A14: Long-term receivables--finance | B14: 13462 | C14: 14264 | D14: 12279 | E14: 11264 | F14: 11948
A15: Investments in unconsolidated affiliated companies | B15: 598 | C15: 94 | D15: 105 | E15: 164 | F15: 133
A16: Noncurrent deferred and refundable income taxes | B16: 1553 | C16: 3311 | D16: 2714 | E16: 2493 | F16: 2157
A17: Intangible assets | B17: 475 | C17: 511 | D17: 465 | E17: 805 | F17: 4368
A18: Goodwill | B18: 1963 | C18: 2261 | D18: 2269 | E18: 2614 | F18: 7080
A19: Other assets | B19: 1922 | C19: 1705 | D19: 1632 | E19: 1538 | F19: 2107
A20: Total assets | B20: =B10+SUM(B12:B19) -> 56132 | C20: =C10+SUM(C12:C19) -> 67782 | D20: =D10+SUM(D12:D19) -> 60038 | E20: =E10+SUM(E12:E19) -> 64020 | F20: =F10+SUM(F12:F19) -> 81446
A22: Liabilities | B22: 2007 | C22: 2008 | D22: 2009 | E22: 2010 | F22: 2011
A23: Current liabilities
A24: Short-term borrowings
A25: Machine and power systems | B25: 187 | C25: 1632 | D25: 433 | E25: 204 | F25: 93
A26: Financial products | B26: 5281 | C26: 5577 | D26: 3650 | E26: 3852 | F26: 3895
A27: Accounts payable | B27: 4723 | C27: 4827 | D27: 2993 | E27: 5856 | F27: 8161
A28: Accrued expenses | B28: 3178 | C28: 4121 | D28: 2641 | E28: 2880 | F28: 3386
A29: Accrued wages, salaries and employee benefits | B29: 1126 | C29: 1242 | D29: 797 | E29: 1670 | F29: 2410
A30: Customer advances | B30: 1442 | C30: 1898 | D30: 1217 | E30: 1831 | F30: 2691
A31: Dividends payable | B31: 225 | C31: 253 | D31: 262 | E31: 281 | F31: 298
A32: Other current liabilities | B32: 951 | C32: 1027 | D32: 1281 | E32: 1521 | F32: 1967
A33: Long-term debt due within one year
A34: Machinery and power systems | B34: 180 | C34: 456 | D34: 302 | E34: 495 | F34: 558
A35: Financial products | B35: 4952 | C35: 5036 | D35: 5399 | E35: 3430 | F35: 5102
A36: Total current liabilities | B36: =SUM(B25:B35) -> 22245 | C36: =SUM(C25:C35) -> 26069 | D36: =SUM(D25:D35) -> 18975 | E36: =SUM(E25:E35) -> 22020 | F36: =SUM(F25:F35) -> 28561
A38: Long-term debt due after one year
A39: Machinery and power systems | B39: 3639 | C39: 5736 | D39: 5652 | E39: 4505 | F39: 8415
A40: Financial products | B40: 14190 | C40: 17098 | D40: 16195 | E40: 15932 | F40: 16529
A41: Liability for postemployment benefits | B41: 5059 | C41: 9975 | D41: 7420 | E41: 7584 | F41: 10956
A42: Other liabilities | B42: 2003 | C42: 2190 | D42: 2496 | E42: 2654 | F42: 3583
A43: Total liabilities | B43: =B36+SUM(B39:B42) -> 47136 | C43: =C36+SUM(C39:C42) -> 61068 | D43: =D36+SUM(D39:D42) -> 50738 | E43: =E36+SUM(E39:E42) -> 52695 | F43: =F36+SUM(F39:F42) -> 68044
A45: Redeemable noncontrolling interest | B45: 0 | C45: 524 | D45: 477 | E45: 461 | F45: 473
A46: Stockholders' equity
A47: Common stock of $1.00 par
A48: Common stock (814,894,624 shares) | B48: 2744 | C48: 3057 | D48: 3439 | E48: 3888 | F48: 4273
A49: Treasury stock at cost | B49: -9451 | C49: -11217 | D49: -10646 | E49: -10397 | F49: -10281
A50: Profit employed in the business | B50: 17398 | C50: 19826 | D50: 19711 | E50: 21384 | F50: 25219
A51: Accumulated and other comprehensive income (loss) | B51: -1808 | C51: -5579 | D51: -3764 | E51: -4051 | F51: -6328
A52: Noncontrolling interests | B52: 113 | C52: 103 | D52: 83 | E52: 40 | F52: 46
A53: Total shareholders equity | B53: =SUM(B47:B52) -> 8996 | C53: =SUM(C47:C52) -> 6190 | D53: =SUM(D47:D52) -> 8823 | E53: =SUM(E47:E52) -> 10864 | F53: =SUM(F47:F52) -> 12929
A54: Total liabilities and equity | B54: =B43+B53+B45 -> 56132 | C54: =C43+C53+C45 -> 67782 | D54: =D43+D53+D45 -> 60038 | E54: =E43+E53+E45 -> 64020 | F54: =F43+F53+F45 -> 81446
A57: Treasury stock, shares | B57: 190908490 | C57: 213267983 | D57: 190171905 | E57: 176071910 | F57: 167361280
A58: Net shares outstanding | B58: =814894624-B57 -> 623986134 | C58: =814894624-C57 -> 601626641 | D58: =814894624-D57 -> 624722719 | E58: =814894624-E57 -> 638822714 | F58: =814894624-F57 -> 647533344

Sheet Page 165
A1: CATERPILLAR BALANCE SHEETS, 2007-2011 Rewritten: Operating Current Assets, Operating Current Liabilities, Financial Debts together
A2: Assets | B2: 2007 | C2: 2008 | D2: 2009 | E2: 2010 | F2: 2011
A3: Current assets
A4: Cash and short-term investments | B4: 1122 | C4: 2736 | D4: 4867 | E4: 3592 | F4: 3057
A5: Operating current assets | B5: =SUM('Page 163'!B5:B9) -> 24355 | C5: =SUM('Page 163'!C5:C9) -> 28897 | D5: =SUM('Page 163'!D5:D9) -> 22350 | E5: =SUM('Page 163'!E5:E9) -> 28218 | F5: =SUM('Page 163'!F5:F9) -> 35071
A7: Property, plant and equipment--net | B7: 9997 | C7: 12524 | D7: 12386 | E7: 12539 | F7: 14395
A8: Long-term receivables | B8: =685+13462 -> 14147 | C8: =1479+14264 -> 15743 | D8: =971+12279 -> 13250 | E8: =793+11264 -> 12057 | F8: =1130+11948 -> 13078
A9: Investments in unconsolidated affiliated companies | B9: 598 | C9: 94 | D9: 105 | E9: 164 | F9: 133
A10: Noncurrent deferred and refundable income taxes | B10: 1553 | C10: 3311 | D10: 2714 | E10: 2493 | F10: 2157
A11: Intangible assets | B11: 475 | C11: 511 | D11: 465 | E11: 805 | F11: 4368
A12: Goodwill | B12: 1963 | C12: 2261 | D12: 2269 | E12: 2614 | F12: 7080
A13: Other assets | B13: 1922 | C13: 1705 | D13: 1632 | E13: 1538 | F13: 2107
A14: Total assets | B14: =SUM(B4:B13) -> 56132 | C14: =SUM(C4:C13) -> 67782 | D14: 60038 | E14: 64020 | F14: 81446
A16: Liabilities | B16: 2007 | C16: 2008 | D16: 2009 | E16: 2010 | F16: 2011
A17: Operating current liabilities | B17: =SUM('Page 163'!B27:B32) -> 11645 | C17: =SUM('Page 163'!C27:C32) -> 13368 | D17: =SUM('Page 163'!D27:D32) -> 9191 | E17: =SUM('Page 163'!E27:E32) -> 14039 | F17: =SUM('Page 163'!F27:F32) -> 18913
A19: Financial debt | B19: 28429 | C19: 35535 | D19: 31631 | E19: 28418 | F19: 34592
A21: Liability for postemployment benefits | B21: 5059 | C21: 9975 | D21: 7420 | E21: 7584 | F21: 10956
A22: Other liabilities | B22: 2003 | C22: 2190 | D22: 2496 | E22: 2654 | F22: 3583
A23: Total liabilities | B23: =SUM(B17:B22) -> 47136 | C23: =SUM(C17:C22) -> 61068 | D23: 50738 | E23: 52695 | F23: 68044
A25: Redeemable noncontrolling interest | B25: 0 | C25: 524 | D25: 477 | E25: 461 | F25: 473
A26: Stockholders' equity
A27: Common stock (814,894,624 shares) | B27: 2744 | C27: 3057 | D27: 3439 | E27: 3888 | F27: 4273
A28: Treasury stock at cost | B28: -9451 | C28: -11217 | D28: -10646 | E28: -10397 | F28: -10281
A29: Profit employed in the business | B29: 17398 | C29: 19826 | D29: 19711 | E29: 21384 | F29: 25219
A30: Accumulated and other comprehensive income (loss) | B30: -1808 | C30: -5579 | D30: -3764 | E30: -4051 | F30: -6328
A31: Noncontrolling interests | B31: 113 | C31: 103 | D31: 83 | E31: 40 | F31: 46
A32: Total shareholders equity | B32: =SUM(B27:B31) -> 8996 | C32: =SUM(C27:C31) -> 6190 | D32: =SUM(D27:D31) -> 8823 | E32: =SUM(E27:E31) -> 10864 | F32: =SUM(F27:F31) -> 12929
A33: Total liabilities and equity | B33: =B23+B32+B25 -> 56132 | C33: =C23+C32+C25 -> 67782 | D33: =D23+D32+D25 -> 60038 | E33: =E23+E32+E25 -> 64020 | F33: =F23+F32+F25 -> 81446
A36: Treasury stock, shares | B36: 190908490 | C36: 213267983 | D36: 190171905 | E36: 176071910 | F36: 167361280
A37: Net shares outstanding | B37: =814894624-B36 -> 623986134 | C37: =814894624-C36 -> 601626641 | D37: =814894624-D36 -> 624722719 | E37: =814894624-E36 -> 638822714 | F37: =814894624-F36 -> 647533344

Sheet Page 167
A1: ANALYSIS OF CATERPILLAR SALES
A2: Year | B2: Sales of machinery | C2: Revenues of financial products | D2: Total sales and revenues | E2: Year-on-year growth
A3: 2000 | B3: 18913 | C3: 1262 | D3: =SUM(B3:C3) -> 20175
A4: 2001 | B4: 19027 | C4: 1423 | D4: 20450 | E4: =D4/D3-1 -> 0.0136307311
A5: 2002 | B5: 18648 | C5: 1504 | D5: 20152 | E5: =D5/D4-1 -> -0.01457212714
A6: 2003 | B6: 21048 | C6: 1759 | D6: 22807 | E6: 0.1317487098
A7: 2004 | B7: 28336 | C7: 1970 | D7: 30306 | E7: 0.3288025606
A8: 2005 | B8: 34006 | C8: 2333 | D8: 36339 | E8: 0.1990694912
A9: 2006 | B9: 28869 | C9: 2648 | D9: 31517 | E9: -0.1326949008
A10: 2007 | B10: 41962 | C10: 2996 | D10: 44958 | E10: 0.4264682552
A11: 2008 | B11: 48044 | C11: 3280 | D11: 51324 | E11: 0.1415988256
A12: 2009 | B12: 29540 | C12: 2856 | D12: 32396 | E12: -0.3687943262
A13: 2010 | B13: 39867 | C13: 2721 | D13: 42588 | E13: 0.3146067416
A14: 2011 | B14: 57392 | C14: 2746 | D14: 60138 | E14: 0.4120879121
A16: Growth measures
A17: CAGR | B17: =(D14/D3)^(1/11)-1 -> 0.104387299 | C17: =getformula(B17) -> <-- =(D14/D3)^(1/11)-1
A18: Slope | B18: =SLOPE(D3:D14,A3:A14) -> 3168.748252 | C18: =getformula(B18) -> <-- =SLOPE(D3:D14,A3:A14)
A19: Slope/2011 sales | B19: =B18/D14 -> 0.05269128092 | C19: =getformula(B19) -> <-- =B18/D14
A21: Intercept | B21: =INTERCEPT(D3:D14,A3:A14) -> -6320495.452 | C21: =getformula(B21) -> <-- =INTERCEPT(D3:D14,A3:A14)
A22: R-squared | B22: =RSQ(D3:D14,A3:A14) -> 0.7578785299 | C22: =getformula(B22) -> <-- =RSQ(D3:D14,A3:A14)
A24: CAGR is very affected by end points!
A25: 2001-2011 | B25: =(D14/D4)^(1/10)-1 -> 0.1138983659 | C25: =getformula(B25) -> <-- =(D14/D4)^(1/10)-1
A26: 2002-2011 | B26: =(D14/D5)^(1/9)-1 -> 0.1291690887 | C26: =getformula(B26) -> <-- =(D14/D5)^(1/9)-1
A27: 2003-2011 | B27: =(D14/D6)^(1/8)-1 -> 0.1288470497 | C27: <-- =(D14/D6)^(1/8)-1
A28: 2006-2011 | B28: =(D14/D9)^(1/5)-1 -> 0.1379438206 | C28: <-- =(D14/D9)^(1/5)-1
A30: 2001-2010 | B30: =(D13/D4)^(1/9)-1 -> 0.08492402349 | C30: <-- =(D13/D4)^(1/9)-1
A31: 2002-2010 | B31: =(D13/D5)^(1/8)-1 -> 0.09804752243 | C31: <-- =(D13/D5)^(1/8)-1
A32: 2003-2010 | B32: =(D13/D6)^(1/7)-1 -> 0.0933156966 | C32: <-- =(D13/D6)^(1/7)-1
A33: 2005-2010 | B33: =(D13/D8)^(1/5)-1 -> 0.03224515872 | C33: <-- =(D13/D8)^(1/5)-1

Sheet Page 168
A1: CATERPILLAR ANALYSIS OF RATIOS
B2: 2007 | C2: 2008 | D2: 2009 | E2: 2010 | F2: 2011
A3: CA/Sales | B3: =SUM('Page 163'!B5:B9)/'Page 162'!B5 -> 0.5417278349 | C3: =SUM('Page 163'!C5:C9)/'Page 162'!C5 -> 0.5630309407 | D3: =SUM('Page 163'!D5:D9)/'Page 162'!D5 -> 0.6898999877 | E3: =SUM('Page 163'!E5:E9)/'Page 162'!E5 -> 0.6625810087 | F3: =SUM('Page 163'!F5:F9)/'Page 162'!F5 -> 0.5831753633 | G3: =getformula(F3) -> <-- =SUM('Page 163'!F5:F9)/'Page 162'!F5
A4: CL/Sales | B4: =SUM('Page 163'!B27:B32)/'Page 162'!B5 -> 0.2590195293 | C4: =SUM('Page 163'!C27:C32)/'Page 162'!C5 -> 0.2604629413 | D4: =SUM('Page 163'!D27:D32)/'Page 162'!D5 -> 0.2837078652 | E4: =SUM('Page 163'!E27:E32)/'Page 162'!E5 -> 0.3296468489 | F4: =SUM('Page 163'!F27:F32)/'Page 162'!F5 -> 0.314493332 | G4: =getformula(F4) -> <-- =SUM('Page 163'!F27:F32)/'Page 162'!F5
A5: Model values
A6: CA/Sales | B6: =F3 -> 0.5831753633 | C6: =getformula(B6) -> <-- =F3
A7: CL/Sales | B7: =F4 -> 0.314493332 | C7: =getformula(B7) -> <-- =F4

Sheet Page 169-170
A1: CATERPILLAR OPERATING COSTS
B2: 2007 | C2: 2008 | D2: 2009 | E2: 2010 | F2: 2011
A3: Operating costs from P&L | B3: ='Page 162'!B13 -> 40037 | C3: ='Page 162'!C13 -> 46876 | D3: ='Page 162'!D13 -> 31819 | E3: ='Page 162'!E13 -> 38625 | F3: ='Page 162'!F13 -> 52985 | G3: =getformula(F3) -> <-- ='Page 162'!F13
A4: Depreciation | B4: ='Page 164'!B5 -> 1797 | C4: ='Page 164'!C5 -> 1980 | D4: ='Page 164'!D5 -> 2336 | E4: ='Page 164'!E5 -> 2296 | F4: ='Page 164'!F5 -> 2527 | G4: =getformula(F4) -> <-- ='Page 164'!F5
A5: Operating costs net of depreciation | B5: =B3-B4 -> 38240 | C5: =C3-C4 -> 44896 | D5: =D3-D4 -> 29483 | E5: =E3-E4 -> 36329 | F5: =F3-F4 -> 50458 | G5: =getformula(F5) -> <-- =F3-F4
A6: Sales | B6: ='Page 162'!B5 -> 44958 | C6: ='Page 162'!C5 -> 51324 | D6: ='Page 162'!D5 -> 32396 | E6: ='Page 162'!E5 -> 42588 | F6: ='Page 162'!F5 -> 60138 | G6: =getformula(F6) -> <-- ='Page 162'!F5
A7: Net operating costs/Sales | B7: =B5/B6 -> 0.8505716446 | C7: =C5/C6 -> 0.8747564492 | D7: =D5/D6 -> 0.9100814915 | E7: =E5/E6 -> 0.8530337184 | F7: =F5/F6 -> 0.8390368818 | G7: =getformula(F7) -> <-- =F5/F6
A25: Regressing net operating costs on sales
A26: Intercept | B26: =INTERCEPT(B5:F5,B6:F6) -> 3833.339571 | C26: =getformula(B26) -> <-- =INTERCEPT(B5:F5,B6:F6)
A27: Slope | B27: =SLOPE(B5:F5,B6:F6) -> 0.7788944968 | C27: =getformula(B27) -> <-- =SLOPE(B5:F5,B6:F6)
A28: R-squared | B28: =RSQ(B5:F5,B6:F6) -> 0.9914329247 | C28: =getformula(B28) -> <-- =RSQ(B5:F5,B6:F6)

Sheet Page 171-173
A1: CATERPILLAR—ANALYSIS OF FIXED ASSETS
B2: 2007 | C2: 2008 | D2: 2009 | E2: 2010 | F2: 2011 | H2: Lifetime
A3: Land | B3: 189 | C3: 575 | D3: 639 | E3: 682 | F3: 753
A4: Buildings and land improvements | B4: 3625 | C4: 4647 | D4: 4914 | E4: 5174 | F4: 5857 | H4: 20 - 45
A5: Machinery, equipment and other | B5: 9756 | C5: 12173 | D5: 12917 | E5: 13414 | F5: 14435 | H5: 3 - 10
A6: Equipment leased to others | B6: 4556 | C6: 4561 | D6: 4717 | E6: 4444 | F6: 4285 | H6: 1 - 10
A7: Construction-in-process | B7: 1082 | C7: 1531 | D7: 1034 | E7: 1192 | F7: 1996 | H7: —
A9: Total property, plant and equipment, at cost | B9: =SUM(B3:B7) -> 19208 | C9: =SUM(C3:C7) -> 23487 | D9: =SUM(D3:D7) -> 24221 | E9: =SUM(E3:E7) -> 24906 | F9: =SUM(F3:F7) -> 27326
A10: Less: Accumulated depreciation | B10: -9211 | C10: -10963 | D10: -11835 | E10: -12367 | F10: -12931
A11: Property, plant and equipment—net | B11: =B9+B10 -> 9997 | C11: =C9+C10 -> 12524 | D11: =D9+D10 -> 12386 | E11: =E9+E10 -> 12539 | F11: =F9+F10 -> 14395
A13: Sales | B13: ='Page 162'!B5 -> 44958 | C13: ='Page 162'!C5 -> 51324 | D13: ='Page 162'!D5 -> 32396 | E13: ='Page 162'!E5 -> 42588 | F13: ='Page 162'!F5 -> 60138
A15: Net PPE/Sales | B15: =B11/B13 -> 0.2223630944 | C15: =C11/C13 -> 0.244018393 | D15: =D11/D13 -> 0.382331152 | E15: =E11/E13 -> 0.2944256598 | F15: =F11/F13 -> 0.2393661246
A16: Gross PPE/Sales | B16: =B9/B13 -> 0.4272432048 | C16: =C9/C13 -> 0.4576221651 | D16: =D9/D13 -> 0.7476540314 | E16: =E9/E13 -> 0.5848126233 | F16: =F9/F13 -> 0.4543882404
A17: Model value: Net PPE/Sales | B17: =AVERAGE(B15,C15,E15,F15) -> 0.2500433179 | C17: =getformula(B17) -> <-- =AVERAGE(B15,C15,E15,F15)
A19: Depreciation analysis
A20: %Buildings and land improvements | B20: =B4/SUM(B$4:B$6) -> 0.2020962257 | C20: 0.2173425004 | D20: 0.2179350718 | E20: 0.2246439736 | F20: 0.2383122432 | G20: =getformula(F20) -> <-- =F4/SUM(F$4:F$6)
A21: %Machinery, equipment and other | B21: 0.5439036628 | C21: 0.5693372621 | D21: 0.5728667731 | E21: 0.5824070858 | F21: 0.5873377548 | G21: =getformula(F21) -> <-- =F5/SUM(F$4:F$6)
A22: %Equipment leased to others | B22: 0.2540001115 | C22: 0.2133202376 | D22: 0.209198155 | E22: 0.1929489406 | F22: 0.174350002 | G22: =getformula(F22) -> <-- =F6/SUM(F$4:F$6)
A24: Depreciation rates
A25: Buildings and land improvements | B25: =1/32.5 -> 0.03076923077 | C25: =getformula(B25) -> <-- =1/32.5
A26: Machinery, equipment and other | B26: =1/6.5 -> 0.1538461538 | C26: =getformula(B26) -> <-- =1/6.5
A27: Equipment leased to others | B27: =1/5.5 -> 0.1818181818 | C27: =getformula(B27) -> <-- =1/5.5
A28: Average depreciation rate | B28: =SUMPRODUCT($B$25:$B$27,B20:B22) -> 0.1360776704 | C28: =SUMPRODUCT($B$25:$B$27,C20:C22) -> 0.1330633073 | D28: =SUMPRODUCT($B$25:$B$27,D20:D22) -> 0.1328750724 | E28: =SUMPRODUCT($B$25:$B$27,E20:E22) -> 0.131594838 | F28: =SUMPRODUCT($B$25:$B$27,F20:F22) -> 0.1293923394 | G28: =getformula(F28) -> <-- =SUMPRODUCT($B$25:$B$27,F20:F22)
A29: Model depreciation rate | B29: =AVERAGE(B28:F28) -> 0.1326006455 | C29: =getformula(B29) -> <-- =AVERAGE(B28:F28)
A34: Depreciation from CSCF | B34: ='Page 164'!B5 -> 1797 | C34: ='Page 164'!C5 -> 1980 | D34: ='Page 164'!D5 -> 2336 | E34: ='Page 164'!E5 -> 2296 | F34: ='Page 164'!F5 -> 2527
A35: D(Accumulated depreciation) | C35: =B10-C10 -> 1752 | D35: =C10-D10 -> 872 | E35: =D10-E10 -> 532 | F35: =E10-F10 -> 564
A36: Asset disposal | C36: =C34-C35 -> 228 | D36: =D34-D35 -> 1464 | E36: =E34-E35 -> 1764 | F36: =F34-F35 -> 1963
A37: Proceeds from disposals of PPE | B37: ='Page 164'!B21 -> 408 | C37: ='Page 164'!C21 -> 982 | D37: ='Page 164'!D21 -> 1242 | E37: ='Page 164'!E21 -> 1469 | F37: ='Page 164'!F21 -> 1354
A38: % | C38: =C37/C36 -> 4.307017544 | D38: =D37/D36 -> 0.8483606557 | E38: =E37/E36 -> 0.8327664399 | F38: =F37/F36 -> 0.6897605706
A40: Depreciation rate?
A41: CSCF depreciation/(net assets) | C41: =C34/(C9-C3-C7) -> 0.0926055844 | D41: =D34/(D9-D3-D7) -> 0.1036012063 | E41: =E34/(E9-E3-E7) -> 0.09968739146 | F41: =F34/(F9-F3-F7) -> 0.1028197095
A42: D(Accumulated depreciation)/(net assets) | C42: =C35/(C9-C3-C7) -> 0.08194191104 | D42: =D35/(D9-D3-D7) -> 0.03867305304 | E42: =E35/(E9-E3-E7) -> 0.02309829802 | F42: =F35/(F9-F3-F7) -> 0.02294828498

Sheet Page 173
A1: CATERPILLAR DIVIDENDS
B2: 2007 | C2: 2008 | D2: 2009 | E2: 2010 | F2: 2011
A3: Dividends | B3: =-'Page 164'!B33 -> 845 | C3: =-'Page 164'!C33 -> 953 | D3: =-'Page 164'!D33 -> 1029 | E3: =-'Page 164'!E33 -> 1084 | F3: =-'Page 164'!F33 -> 1159
A4: Year-on-year growth | C4: =C3/B3-1 -> 0.1278106509 | D4: =D3/C3-1 -> 0.07974816369 | E4: =E3/D3-1 -> 0.05344995141 | F4: =F3/E3-1 -> 0.06918819188
A5: Total dividend CAGR
A6: 2007-2011 | B6: =(F3/B3)^(1/4)-1 -> 0.0821978873 | C6: =getformula(B6) -> <-- =(F3/B3)^(1/4)-1
A7: 2008-2011 | B7: =(F3/C3)^(1/3)-1 -> 0.06740732414 | C7: =getformula(B7) -> <-- =(F3/C3)^(1/3)-1
A9: Dividends per share | B9: ='Page 162'!B40 -> 1.38 | C9: ='Page 162'!C40 -> 1.62 | D9: ='Page 162'!D40 -> 1.68 | E9: ='Page 162'!E40 -> 1.74 | F9: ='Page 162'!F40 -> 1.82 | G9: =getformula(F9) -> <-- ='Page 162'!F40
A10: Dividend per share CAGR
A11: 2007-2011 | B11: =(F9/B9)^(1/4)-1 -> 0.07163792651 | C11: =getformula(B11) -> <-- =(F9/B9)^(1/4)-1
A12: 2008-2011 | B12: =(F9/C9)^(1/3)-1 -> 0.03956613748 | C12: =getformula(B12) -> <-- =(F9/C9)^(1/3)-1

Sheet Page 174
A1: OTHER LIABILITIES AND PENSIONS
B2: 2007 | C2: 2008 | D2: 2009 | E2: 2010 | F2: 2011
A3: Other liabilities | B3: ='Page 163'!B42 -> 2003 | C3: ='Page 163'!C42 -> 2190 | D3: ='Page 163'!D42 -> 2496 | E3: ='Page 163'!E42 -> 2654 | F3: ='Page 163'!F42 -> 3583
A4: Year-on-year growth | C4: =C3/B3-1 -> 0.09335996006 | D4: =D3/C3-1 -> 0.1397260274 | E4: =E3/D3-1 -> 0.06330128205 | F4: =F3/E3-1 -> 0.350037679
A5: Whole period | B5: =(F3/B3)^(1/4)-1 -> 0.1564888892 | C5: =getformula(B5) -> <-- =(F3/B3)^(1/4)-1
A6: Excluding 2011 | B6: =(E3/B3)^(1/3)-1 -> 0.09834806624 | C6: =getformula(B6) -> <-- =(E3/B3)^(1/3)-1
A8: Pension liabilities | B8: ='Page 163'!B41 -> 5059 | C8: ='Page 163'!C41 -> 9975 | D8: ='Page 163'!D41 -> 7420 | E8: ='Page 163'!E41 -> 7584 | F8: ='Page 163'!F41 -> 10956 | G8: =getformula(F8) -> <-- ='Page 163'!F41
A9: Year-on-year growth | C9: =C8/B8-1 -> 0.9717335442 | D9: =D8/C8-1 -> -0.2561403509 | E9: =E8/D8-1 -> 0.02210242588 | F9: =F8/E8-1 -> 0.4446202532 | G9: =getformula(F9) -> <-- =F8/E8-1
A10: Whole period | B10: =(F8/B8)^(1/4)-1 -> 0.2131006517 | C10: =getformula(B10) -> <-- =(F8/B8)^(1/4)-1
A11: Excluding 2011 | B11: =(E8/B8)^(1/3)-1 -> 0.144487925 | C11: =getformula(B11) -> <-- =(E8/B8)^(1/3)-1
A12: Model value | B12: =AVERAGE(B10:B11) -> 0.1787942883 | C12: =getformula(B12) -> <-- =AVERAGE(B10:B11)

Sheet Page 174, middle
A1: CATERPILLAR ANALYSIS OF TAX RATE
B2: 2007 | C2: 2008 | D2: 2009 | E2: 2010 | F2: 2011
A3: Profits before taxes | B3: ='Page 162'!B20 -> 4990 | C3: ='Page 162'!C20 -> 4501 | D3: ='Page 162'!D20 -> 569 | E3: ='Page 162'!E20 -> 3750 | F3: ='Page 162'!F20 -> 6725 | G3: =getformula(F3) -> <-- ='Page 162'!F20
A4: Taxes | B4: ='Page 162'!B22 -> 1485 | C4: ='Page 162'!C22 -> 953 | D4: ='Page 162'!D22 -> -270 | E4: ='Page 162'!E22 -> 968 | F4: ='Page 162'!F22 -> 1720 | G4: =getformula(F4) -> <-- ='Page 162'!F22
A5: Tax rate | B5: =B4/B3 -> 0.2975951904 | C5: =C4/C3 -> 0.2117307265 | D5: =D4/D3 -> -0.474516696 | E5: =E4/E3 -> 0.2581333333 | F5: =F4/F3 -> 0.2557620818 | G5: =getformula(F5) -> <-- =F4/F3
A6: Model value | B6: =AVERAGEIF(B5:F5,">0") -> 0.255805333 | C6: =getformula(B6) -> <-- =AVERAGEIF(B5:F5,">0")

Sheet Page 175
A1: CATERPILLAR: VARIOUS PLUGS vs SALES AND OTHER
B2: 2007 | C2: 2008 | D2: 2009 | E2: 2010 | F2: 2011
A3: Sales | B3: ='Page 162'!B5 -> 44958 | C3: ='Page 162'!C5 -> 51324 | D3: ='Page 162'!D5 -> 32396 | E3: ='Page 162'!E5 -> 42588 | F3: ='Page 162'!F5 -> 60138 | G3: =getformula(F3) -> <-- ='Page 162'!F5
A5: Cash | B5: ='Page 163'!B4 -> 1122 | C5: ='Page 163'!C4 -> 2736 | D5: ='Page 163'!D4 -> 4867 | E5: ='Page 163'!E4 -> 3592 | F5: ='Page 163'!F4 -> 3057 | G5: =getformula(F5) -> <-- ='Page 163'!F4
A6: Cash/Sales | B6: =B5/B3 -> 0.02495662618 | C6: =C5/C3 -> 0.05330839373 | D6: 0.1502345969 | E6: 0.08434300742 | F6: 0.05083308391 | G6: =getformula(F6) -> <-- =F5/F3
A7: Debt | B7: ='Page 165'!B19 -> 28429 | C7: ='Page 165'!C19 -> 35535 | D7: ='Page 165'!D19 -> 31631 | E7: ='Page 165'!E19 -> 28418 | F7: ='Page 165'!F19 -> 34592 | G7: =getformula(F7) -> <-- ='Page 165'!F19
A8: Debt/Sales | B8: =B7/B3 -> 0.6323457449 | C8: =C7/C3 -> 0.6923661445 | D8: 0.9763859736 | E8: 0.6672771673 | F8: 0.5752103495 | G8: <-- =F7/F3
A9: Debt/Total assets | B9: =B7/'Page 163'!B20 -> 0.5064668995 | C9: =C7/'Page 163'!C20 -> 0.5242542268 | D9: =D7/'Page 163'!D20 -> 0.5268496619 | E9: =E7/'Page 163'!E20 -> 0.4438925336 | F9: =F7/'Page 163'!F20 -> 0.4247231294 | G9: <-- =F7/'Page 163'!F20
A11: Model values
A12: Cash/Sales | B12: =F6 -> 0.05083308391 | C12: =getformula(B12) -> <-- =F6
A13: Debt/Assets | B13: =F9 -> 0.4247231294 | C13: =getformula(B13) -> <-- =F9

Sheet Page 176
A1: CATERPILLAR PRO FORMA MODEL
A2: Sales growth | B2: ='Page 167'!B19 -> 0.05269128092 | C2: =getformula(B2) -> <-- ='Page 167'!B19
A3: Current assets/Sales | B3: ='Page 168'!B6 -> 0.5831753633 | C3: <-- ='Page 168'!B6
A4: Current liabilities/Sales | B4: ='Page 168'!B7 -> 0.314493332 | C4: <-- ='Page 168'!B7
A5: Net fixed assets/Sales | B5: =AVERAGE('Page 171-173'!B15:F15) -> 0.2765008848 | C5: <-- =AVERAGE('Page 171-173'!B15:F15)
A6: Cost of goods sold/Sales | B6: ='Page 169-170'!F7 -> 0.8390368818 | C6: =getformula(B6) -> <-- ='Page 169-170'!F7
A7: Long-term receivables, growth | B7: =B2 -> 0.05269128092 | C7: <-- Assume this grows at the same rate as sales
A8: Depreciation rate | B8: ='Page 171-173'!B29 -> 0.1326006455 | C8: =getformula(B8) -> <-- ='Page 171-173'!B29
A9: Pension liabilities, growth | B9: ='Page 174'!B12 -> 0.1787942883 | C9: <-- ='Page 174'!B12
A10: Other liabilities, growth | B10: ='Page 174'!B6 -> 0.09834806624 | C10: <-- ='Page 174'!B6
A11: Cash/Sales | B11: ='Page 175'!B12 -> 0.05083308391 | C11: <-- ='Page 175'!B12
A12: Debt/Assets | B12: ='Page 175'!B13 -> 0.4247231294 | C12: <-- ='Page 175'!B13
A13: Interest rate on debt | B13: =#REF! ->  | C13: =getformula(B13) -> <-- =#REF!F18
A14: Interest paid on cash & mkt. sec. | B14: 0 | C14: <-- Author guesstimate
A15: Tax rate | B15: ='Page 174, middle'!B6 -> 0.255805333 | C15: <-- ='Page 174, middle'!B6
A16: Dividend growth | B16: ='Page 173'!B6 -> 0.0821978873 | C16: <-- ='Page 173'!B6
A18: Year | B18: 2011 | C18: 2012 | D18: 2013 | E18: 2014 | F18: 2015 | G18: 2016
A19: Income statement
A20: Sales | B20: ='Page 162'!F5 -> 60138 | C20: =B20*(1+$B$2) -> 63306.74825 | D20: =C20*(1+$B$2) -> 66642.46191 | E20: =D20*(1+$B$2) -> 70153.93859 | F20: =E20*(1+$B$2) -> 73850.43947 | G20: =F20*(1+$B$2) -> 77741.71373 | H20: =getformula(G20) -> <-- =F20*(1+$B$2)
A21: Costs of goods sold | B21: =-'Page 162'!F13+'Page 164'!F5 -> -50458 | C21: =-$B$6*C20 -> -53116.69665 | D21: =-$B$6*D20 -> -55915.48344 | E21: -58861.74188 | F21: -61963.24246 | G21: -65228.16507 | H21: =getformula(G21) -> <-- =-$B$6*G20
A22: Interest payments on debt | C22: =-$B$13*C50 ->  | D22: =-$B$13*D50 ->  | H22: <-- =-$B$13*G50
A23: Interest earned on cash & marketable securities | C23: =$B$14*AVERAGE(B32:C32) -> 0 | D23: =$B$14*AVERAGE(C32:D32) -> 0 | E23: =$B$14*AVERAGE(D32:E32) -> 0 | F23: =$B$14*AVERAGE(E32:F32) -> 0 | G23: =$B$14*AVERAGE(F32:G32) -> 0 | H23: <-- =$B$14*AVERAGE(F32:G32)
A24: Depreciation | B24: =-'Page 164'!F5 -> -2527 | C24: =C38-B38 -> -3711.127367 | D24: =D38-C38 -> -4524.451922 | E24: =E38-D38 -> -5301.434743 | F24: =F38-E38 -> -6195.845483 | G24: =G38-F38 -> -7224.734076 | H24: <-- =G38-F38
A25: Profit before tax | B25: =SUM(B20:B24) -> 7153 | H25: <-- =SUM(G20:G24)
A26: Taxes | B26: =-'Page 162'!F22 -> -1720 | C26: =-$B$15*C25 ->  | D26: =-$B$15*D25 ->  | E26: =-$B$15*E25 ->  | F26: =-$B$15*F25 ->  | G26: =-$B$15*G25 ->  | H26: <-- =-$B$15*G25
A27: Profit after tax | B27: =B25+B26 -> 5433 | H27: <-- =G25+G26
A28: Dividends | B28: ='Page 173'!F3 -> 1159 | C28: =B28*(1+$B$16) -> 1254.267351 | D28: =C28*(1+$B$16) -> 1357.365478 | E28: =D28*(1+$B$16) -> 1468.938052 | F28: =E28*(1+$B$16) -> 1589.681657 | G28: =F28*(1+$B$16) -> 1720.35013 | H28: <-- =F28*(1+$B$16)
A29: Retained earnings | C29: =C27+C28 ->  | D29: =D27+D28 ->  | E29: =E27+E28 ->  | F29: =F27+F28 ->  | G29: =G27+G28 ->  | H29: <-- =G27+G28
A31: Balance sheet | B31: 2011 | C31: 2012 | D31: 2013 | E31: 2014 | F31: 2015 | G31: 2016 | H31: <-- 2016
A32: Cash and marketable securities | B32: ='Page 163'!F4 -> 3057 | C32: =$B$11*C20 -> 3218.077246 | D32: =$B$11*D20 -> 3387.641858 | E32: 3566.141047 | F32: 3754.045586 | G32: 3951.851057 | H32: <-- =$B$11*G20
A33: Current assets | B33: =SUM('Page 163'!F5:F9) -> 35071 | C33: =$B$3*C20 -> 36918.93591 | D33: =$B$3*D20 -> 38864.24194 | E33: =$B$3*E20 -> 40912.04863 | F33: =$B$3*F20 -> 43067.75687 | G33: =$B$3*G20 -> 45337.05215 | H33: <-- =$B$3*G20
A34: Fixed assets | H34: <--
A35: Land | B35: ='Page 171-173'!F3 -> 753 | C35: =B35 -> 753 | D35: 753 | E35: 753 | F35: 753 | G35: 753 | H35: <-- =F35
A36: Construction in progress | B36: ='Page 171-173'!F7 -> 1996 | C36: 1996 | D36: 1996 | E36: 1996 | F36: 1996 | G36: 1996 | H36: <-- =F36
A37: Depreciable assets at cost | B37: =SUM('Page 171-173'!F4:F6) -> 24577 | C37: =C39-C38-C36-C35 -> 31397.49927 | D37: =D39-D38-D36-D35 -> 36844.27897 | E37: =E39-E38-E36-E35 -> 43116.64012 | F37: =F39-F38-F36-F35 -> 50334.57137 | G37: =G39-G38-G36-G35 -> 58635.24622 | H37: <-- =G39-G38-G36-G35
A38: Accumulated depreciation | B38: ='Page 171-173'!F10 -> -12931 | C38: =B38-$B$8*AVERAGE(B37:C37) -> -16642.12737 | D38: =C38-$B$8*AVERAGE(C37:D37) -> -21166.57929 | E38: =D38-$B$8*AVERAGE(D37:E37) -> -26468.01403 | F38: =E38-$B$8*AVERAGE(E37:F37) -> -32663.85952 | G38: =F38-$B$8*AVERAGE(F37:G37) -> -39888.59359 | H38: <-- =F38-$B$8*AVERAGE(F37:G37)
A39: Net PPE | B39: =SUM(B35:B38) -> 14395 | C39: =$B$5*C20 -> 17504.3719 | D39: =$B$5*D20 -> 18426.69968 | E39: =$B$5*E20 -> 19397.62609 | F39: =$B$5*F20 -> 20419.71185 | G39: =$B$5*G20 -> 21495.65263 | H39: <-- =$B$5*G20
H40: <--
A41: Long-term receivables | B41: =1130+11948 -> 13078 | C41: =B41*(1+$B$7) -> 13767.09657 | D41: =C41*(1+$B$7) -> 14492.50252 | E41: 15256.13105 | F41: 16059.99613 | G41: 16906.2179 | H41: <-- =F41*(1+$B$7)
A42: Investments in unconsolidated affiliated companies | B42: ='Page 163'!F15 -> 133 | C42: =B42 -> 133 | D42: 133 | E42: 133 | F42: 133 | G42: 133 | H42: <-- =F42
A43: Noncurrent deferred and refundable income taxes | B43: ='Page 163'!F16 -> 2157 | C43: 2157 | D43: 2157 | E43: 2157 | F43: 2157 | G43: 2157 | H43: <-- =F43
A44: Intangibles and other | B44: =SUM('Page 163'!F17:F19) -> 13555 | C44: 13555 | D44: 13555 | E44: 13555 | F44: 13555 | G44: 13555 | H44: <-- =F44
A45: Total assets | B45: =B32+B33+B39+SUM(B41:B44) -> 81446 | C45: 87253.48163 | D45: 91016.086 | E45: 94976.94681 | F45: 99146.51045 | G45: 103535.7737 | H45: <-- =G32+G33+G39+SUM(G41:G44)
H46: <--
A47: Current liabilities | B47: =SUM('Page 163'!F27:F32) -> 18913 | C47: =$B$4*C20 -> 19909.5502 | D47: =$B$4*D20 -> 20958.6099 | E47: =$B$4*E20 -> 22062.9459 | F47: =$B$4*F20 -> 23225.47078 | G47: =$B$4*G20 -> 24449.25059 | H47: <-- =$B$4*G20
A48: Pension liabilities | B48: ='Page 163'!F41 -> 10956 | C48: =B48*(1+$B$9) -> 12914.87022 | D48: =C48*(1+$B$9) -> 15223.97525 | E48: =D48*(1+$B$9) -> 17945.93508 | F48: =E48*(1+$B$9) -> 21154.56577 | G48: =F48*(1+$B$9) -> 24936.8813 | H48: <-- =F48*(1+$B$9)
A49: Other liabilities | B49: ='Page 163'!F42 -> 3583 | C49: =B49*(1+$B$10) -> 3935.381121 | D49: =C49*(1+$B$10) -> 4322.418245 | E49: =D49*(1+$B$10) -> 4747.51972 | F49: =E49*(1+$B$10) -> 5214.429104 | G49: =F49*(1+$B$10) -> 5727.258123 | H49: <-- =F49*(1+$B$10)
A50: Debt | B50: =SUM('Page 163'!F25:F26)+SUM('Page 163'!F34:F35)+SUM('Page 163'!F39:F40) -> 34592 | C50: =$B$12*C45 -> 37058.57177 | D50: =$B$12*D45 -> 38656.63687 | E50: 40338.90607 | F50: 42109.81619 | G50: 43974.03783 | H50: <-- =$B$12*G45
A51: Redeemable noncontrolling interest | B51: ='Page 163'!F45 -> 473 | C51: =B51 -> 473 | D51: 473 | E51: 473 | F51: 473 | G51: 473 | H51: <-- =F51
A52: Stock | B52: ='Page 165'!B27 -> 2744 | C52: 2744 | D52: 2744 | E52: 2744 | F52: 2744 | G52: 2744 | H52: <-- =F52
A53: Treasury stock | B53: ='Page 165'!B28 -> -9451 | C53: =C45-SUM(C47:C52)-C54 ->  | D53: =D45-SUM(D47:D52)-D54 ->  | H53: <-- =G45-SUM(G47:G52)-G54
A54: Accumulated retained earnings | B54: ='Page 165'!B29 -> 17398 | C54: =B54+C29 ->  | D54: =C54+D29 ->  | E54: =D54+E29 ->  | F54: =E54+F29 ->  | G54: =F54+G29 ->  | H54: <-- =F54+G29
A55: Total liabilities and equity | B55: =SUM(B47:B54) -> 79208 | C55: =SUM(C47:C54) ->  | H55: <-- =SUM(G47:G54)
A58: Year | B58: 2011 | C58: 2012 | D58: 2013 | E58: 2014 | F58: 2015 | G58: 2016
A59: Free Cash Flow
A60: PAT | C60: =C27 ->  | D60: =D27 ->  | E60: =E27 ->  | F60: =F27 ->  | G60: =G27 ->  | H60: <-- =G27
A61: Add back depreciation | C61: =-C24 -> 3711.127367 | D61: =-D24 -> 4524.451922 | E61: =-E24 -> 5301.434743 | F61: =-F24 -> 6195.845483 | G61: =-G24 -> 7224.734076 | H61: <-- =-G24
A62: Minus NWC
A63: Minus increase in CA | C63: =B33-C33 -> -1847.935913 | D63: =C33-D33 -> -1945.306023 | E63: =D33-E33 -> -2047.806689 | F63: =E33-F33 -> -2155.708247 | G63: =F33-G33 -> -2269.295276 | H63: <-- =F33-G33
A64: Add back increase in CL | C64: =C47-B47 -> 996.550196 | D64: =D47-C47 -> 1049.059702 | E64: =E47-D47 -> 1104.336002 | F64: =F47-E47 -> 1162.52488 | G64: =G47-F47 -> 1223.779805 | H64: <-- =G47-F47
A65: Subtract CAPEX | C65: =-(SUM(C35:C37)-SUM(B35:B37)) -> -6820.49927 | D65: =-(SUM(D35:D37)-SUM(C35:C37)) -> -5446.779699 | E65: =-(SUM(E35:E37)-SUM(D35:D37)) -> -6272.361152 | F65: =-(SUM(F35:F37)-SUM(E35:E37)) -> -7217.931248 | G65: =-(SUM(G35:G37)-SUM(F35:F37)) -> -8300.674849 | H65: <-- =-(SUM(G35:G37)-SUM(F35:F37))
A66: Add back net interest after taxes | C66: =-(1-$B$15)*(C22-C23) ->  | D66: =-(1-$B$15)*(D22-D23) ->  | E66: =-(1-$B$15)*(E22-E23) ->  | F66: =-(1-$B$15)*(F22-F23) ->  | G66: =-(1-$B$15)*(G22-G23) ->  | H66: <-- =-(1-$B$15)*(G22-G23)
A67: Free Cash Flow | C67: =SUM(C60:C66) ->  | D67: =SUM(D60:D66) ->  | E67: =SUM(E60:E66) ->  | F67: =SUM(F60:F66) ->  | G67: =SUM(G60:G66) ->  | H67: <-- =SUM(G60:G66)
A70: WACC | B70: 0.1084
A71: Long-term FCF growth | B71: 0.09
A73: Year | B73: 2011 | C73: 2012 | D73: 2013 | E73: 2014 | F73: 2015 | G73: 2016
A74: FCF | C74: =C67 ->  | D74: =D67 ->  | E74: =E67 ->  | F74: =F67 ->  | G74: =G67 ->  | H74: <-- =G67
A75: Terminal value | G75: =G74*(1+B71)/(B70-B71) ->  | H75: <-- =G74*(1+B71)/(B70-B71)
A76: Total | C76: =C74+C75 ->  | D76: =D74+D75 ->  | E76: =E74+E75 ->  | F76: =F74+F75 ->  | G76: =G74+G75 ->  | H76: <-- =G74+G75
A78: Enterprise value: PV of FCFs and terminal value | B78: =NPV(B70,C76:G76)*(1+B70)^0.5 ->  | C78: =getformula(B78) -> <-- =NPV(B70,C76:G76)*(1+B70)^0.5
A79: Add back initial cash | B79: =B32 -> 3057 | C79: <-- =B32
A80: Asset value | B80: =B78+B79 ->  | C80: <-- =B78+B79
A81: Subtract year 0 debt | B81: =-SUM(B48:B51) -> -49604 | C81: <-- =-SUM(B48:B51)
A82: Imputed equity value | B82: =B80+B81 ->  | C82: <-- =B80+B81
A83: Divide by # shares outstanding | B83: ='Page 163'!F58 -> 647533344 | C83: <-- ='Page 163'!F58
A84: Share value | B84: =B82/B83*1000000 ->  | C84: <-- =B82/B83*1000000
A85: Current market value per share | B85: 90.6
C87: LT growth rate ↓
B88: =IF(B70>B71,B84,"") ->  | C88: 0.06 | D88: 0.07 | E88: 0.08 | F88: 0.09 | G88: 0.1
A89: WACC--> | B89: 0.06
B90: 0.065
B91: 0.07
B92: 0.075
A93: =ggetformula(B88) -> =IF(B70>B71,B84,"") | B93: 0.08
B94: 0.085
B95: 0.09
B96: 0.095
B97: 0.1
B98: 0.105
